[Event "Live Chess"]
[Site "Chess.com"]
[Date "2023.05.20"]
[Round "-"]
[White "vovanada"]
[Black "smoggyrabbit"]
[Result "0-1"]
[WhiteElo "806"]
[BlackElo "1632"]
[TimeControl "300"]
[EndTime "10:11:50 PDT"]
[Termination "smoggyrabbit won by checkmate"]

1. d4 {[%clk 0:04:56.5]} 1... e6 {[%clk 0:04:59]} 2. Bf4 {[%clk 0:04:55.4]} 2...
f5 {[%clk 0:04:53.7]} 3. e3 {[%clk 0:04:54.6]} 3... Nf6 {[%clk 0:04:52.5]} 4.
Nf3 {[%clk 0:04:53.4]} 4... b6 {[%clk 0:04:47.5]} 5. c3 {[%clk 0:04:51.8]} 5...
Bb7 {[%clk 0:04:46.7]} 6. Be2 {[%clk 0:04:43]} 6... Be7 {[%clk 0:04:45.8]} 7.
Nbd2 {[%clk 0:04:36.1]} 7... O-O {[%clk 0:04:44]} 8. O-O {[%clk 0:04:18.9]} 8...
Ne4 {[%clk 0:04:42.2]} 9. Nxe4 {[%clk 0:04:16.6]} 9... fxe4 {[%clk 0:04:41.2]}
10. Ne5 {[%clk 0:04:13.4]} 10... d6 {[%clk 0:04:17.4]} 11. Nc4 {[%clk
0:03:45.4]} 11... Nd7 {[%clk 0:03:35.6]} 12. f3 {[%clk 0:03:35]} 12... Nf6
{[%clk 0:03:20.8]} 13. Qe1 {[%clk 0:03:16.8]} 13... exf3 {[%clk 0:02:35]} 14.
Bxf3 {[%clk 0:03:12.1]} 14... Bxf3 {[%clk 0:02:33.6]} 15. Rxf3 {[%clk
0:03:11.2]} 15... Nd5 {[%clk 0:02:27.8]} 16. Qg3 {[%clk 0:02:40.2]} 16... Nxf4
{[%clk 0:02:04]} 17. Rxf4 {[%clk 0:02:34.1]} 17... Rxf4 {[%clk 0:01:59.1]} 18.
Qxf4 {[%clk 0:02:34]} 18... Bg5 {[%clk 0:01:53]} 19. Qg3 {[%clk 0:02:22.2]}
19... Qe7 {[%clk 0:01:17.5]} 20. h4 {[%clk 0:02:12.1]} 20... Bxh4 {[%clk
0:01:13]} 21. Qh3 {[%clk 0:02:05.7]} 21... Rf8 {[%clk 0:01:09.2]} 22. Rf1 {[%clk
0:01:58]} 22... Rxf1+ {[%clk 0:00:36.8]} 23. Kxf1 {[%clk 0:01:57.9]} 23... Qf6+
{[%clk 0:00:31.9]} 24. Kg1 {[%clk 0:01:52.2]} 24... b5 {[%clk 0:00:17.9]} 25.
Nd2 {[%clk 0:01:49.5]} 25... Bg5 {[%clk 0:00:15.4]} 26. Nf3 {[%clk 0:01:46.4]}
26... Bxe3+ {[%clk 0:00:14.5]} 27. Kh1 {[%clk 0:01:44.1]} 27... Bh6 {[%clk
0:00:12.8]} 28. a3 {[%clk 0:01:39.1]} 28... Qg6 {[%clk 0:00:10.5]} 29. b4 {[%clk
0:01:32.4]} 29... Bf4 {[%clk 0:00:09.5]} 30. Nh4 {[%clk 0:01:18.9]} 30... Qb1#
{[%clk 0:00:07.8]} 0-1

[Event "Live Chess"]
[Site "Chess.com"]
[Date "2023.05.20"]
[Round "-"]
[White "mementoluna"]
[Black "RedRook90"]
[Result "0-1"]
[WhiteElo "1045"]
[BlackElo "1970"]
[TimeControl "300"]
[EndTime "10:11:52 PDT"]
[Termination "RedRook90 won by resignation"]

1. c4 {[%clk 0:04:58.9]} 1... e6 {[%clk 0:04:59]} 2. Nc3 {[%clk 0:04:58]} 2...
d5 {[%clk 0:04:58.4]} 3. cxd5 {[%clk 0:04:56.9]} 3... exd5 {[%clk 0:04:58.2]} 4.
e3 {[%clk 0:04:56]} 4... Nf6 {[%clk 0:04:57.7]} 5. Nge2 {[%clk 0:04:55.6]} 5...
Bd6 {[%clk 0:04:56.6]} 6. g3 {[%clk 0:04:54.8]} 6... O-O {[%clk 0:04:56.2]} 7.
Bg2 {[%clk 0:04:54.5]} 7... c5 {[%clk 0:04:54.1]} 8. O-O {[%clk 0:04:53.9]} 8...
Be6 {[%clk 0:04:52.1]} 9. b3 {[%clk 0:04:53]} 9... Nc6 {[%clk 0:04:49.6]} 10.
Bb2 {[%clk 0:04:52.4]} 10... d4 {[%clk 0:04:48]} 11. exd4 {[%clk 0:04:51.5]}
11... cxd4 {[%clk 0:04:47.1]} 12. Nb5 {[%clk 0:04:45.8]} 12... d3 {[%clk
0:04:46.4]} 13. Nxd6 {[%clk 0:04:44.1]} 13... dxe2 {[%clk 0:04:37.9]} 14. Qxe2
{[%clk 0:04:42.4]} 14... Qxd6 {[%clk 0:04:36.8]} 15. Bxf6 {[%clk 0:04:41.9]}
15... gxf6 {[%clk 0:04:36.5]} 16. Rfe1 {[%clk 0:04:38.4]} 16... Bd5 {[%clk
0:04:35.2]} 17. Qg4+ {[%clk 0:04:37.3]} 17... Kh8 {[%clk 0:04:32.9]} 18. Bh3
{[%clk 0:04:28.7]} 18... Be6 {[%clk 0:04:27.4]} 19. Qh5 {[%clk 0:04:25.4]} 19...
Bxh3 {[%clk 0:04:25.4]} 20. Qxh3 {[%clk 0:04:24.8]} 20... Rae8 {[%clk
0:04:17.3]} 21. Red1 {[%clk 0:04:11.4]} 21... Re2 {[%clk 0:04:14.6]} 22. d4
{[%clk 0:04:06]} 22... Qe6 {[%clk 0:03:53]} 23. Qxe6 {[%clk 0:03:56.2]} 23...
fxe6 {[%clk 0:03:52.9]} 24. d5 {[%clk 0:03:54.5]} 24... exd5 {[%clk 0:03:50.5]}
25. Rxd5 {[%clk 0:03:54.3]} 25... Rf7 {[%clk 0:03:45.7]} 26. Rad1 {[%clk
0:03:18.2]} 26... Rxa2 {[%clk 0:03:30]} 27. Rd7 {[%clk 0:03:17.6]} 27... Rxd7
{[%clk 0:03:23.5]} 28. Rxd7 {[%clk 0:03:15.7]} 28... b6 {[%clk 0:02:27]} 29. Rd6
{[%clk 0:03:14.3]} 29... Rc2 {[%clk 0:02:26.7]} 30. Rxf6 {[%clk 0:03:06.7]}
30... Kg7 {[%clk 0:02:25.9]} 31. Rd6 {[%clk 0:03:04]} 31... Rc3 {[%clk
0:02:14.1]} 32. Kg2 {[%clk 0:02:52.4]} 32... Ne5 {[%clk 0:02:08.9]} 33. b4
{[%clk 0:02:45.5]} 33... Rc4 {[%clk 0:02:07.1]} 34. f4 {[%clk 0:02:41.6]} 34...
Nf7 {[%clk 0:02:04.4]} 35. Rd7 {[%clk 0:02:38.5]} 35... Rxb4 {[%clk 0:02:02.9]}
36. Rxa7 {[%clk 0:02:37.6]} 36... Rb2+ {[%clk 0:02:02.5]} 37. Kh3 {[%clk
0:02:32.7]} 37... b5 {[%clk 0:02:02.1]} 38. g4 {[%clk 0:02:24.9]} 38... h6
{[%clk 0:02:00.3]} 39. Kg3 {[%clk 0:02:20]} 39... b4 {[%clk 0:01:59.7]} 40. h4
{[%clk 0:02:16.2]} 40... b3 {[%clk 0:01:58.1]} 41. Rb7 {[%clk 0:02:08.5]} 41...
Rb1 {[%clk 0:01:56.5]} 42. g5 {[%clk 0:02:04.6]} 42... hxg5 {[%clk 0:01:52.5]}
43. hxg5 {[%clk 0:02:01.4]} 43... b2 {[%clk 0:01:52.1]} 44. Kg2 {[%clk
0:01:53.5]} 44... Kg6 {[%clk 0:01:39.5]} 45. Rb6+ {[%clk 0:01:38.2]} 45... Kh5
{[%clk 0:01:32.9]} 46. g6 {[%clk 0:01:34.3]} 46... Nh6 {[%clk 0:01:30]} 47. g7
{[%clk 0:01:31.6]} 47... Ng8 {[%clk 0:01:27.2]} 48. f5 {[%clk 0:01:27.9]} 48...
Rc1 {[%clk 0:01:13.2]} 49. Rxb2 {[%clk 0:01:23.2]} 49... Rc7 {[%clk 0:01:12.8]}
50. Rb6 {[%clk 0:01:11.5]} 50... Rxg7+ {[%clk 0:01:11.6]} 51. Kf3 {[%clk
0:01:09.4]} 51... Rf7 {[%clk 0:01:09.6]} 52. Kf4 {[%clk 0:01:05.7]} 52... Nh6
{[%clk 0:01:06.1]} 53. Rb5 {[%clk 0:00:59.7]} 53... Rf6 {[%clk 0:01:04.8]} 54.
Re5 {[%clk 0:00:55.1]} 54... Kh4 {[%clk 0:00:59.6]} 55. Re3 {[%clk 0:00:51.3]}
55... Rxf5+ {[%clk 0:00:57.8]} 56. Ke4 {[%clk 0:00:48.2]} 56... Rf1 {[%clk
0:00:51]} 57. Kd5 {[%clk 0:00:43]} 57... Ng4 {[%clk 0:00:50]} 58. Rd3 {[%clk
0:00:39.5]} 58... Kg5 {[%clk 0:00:44.7]} 59. Rd4 {[%clk 0:00:37.5]} 59... Rf5+
{[%clk 0:00:43.9]} 60. Kc4 {[%clk 0:00:36.4]} 60... Ne3+ {[%clk 0:00:43]} 61.
Kd3 {[%clk 0:00:35.2]} 61... Ng2 {[%clk 0:00:39.8]} 62. Rb4 {[%clk 0:00:33.3]}
62... Rf3+ {[%clk 0:00:39]} 63. Kc2 {[%clk 0:00:31.7]} 63... Rf2+ {[%clk
0:00:38]} 64. Kb3 {[%clk 0:00:30.8]} 64... Rf3+ {[%clk 0:00:37.5]} 65. Ka4
{[%clk 0:00:29.7]} 65... Nf4 {[%clk 0:00:36.5]} 66. Kb5 {[%clk 0:00:28.8]} 66...
Ng6 {[%clk 0:00:35.9]} 67. Rc4 {[%clk 0:00:27.9]} 67... Rf5+ {[%clk 0:00:35.5]}
68. Kb4 {[%clk 0:00:26.8]} 68... Ne5 {[%clk 0:00:34.5]} 69. Rc5 {[%clk
0:00:25.7]} 69... Kf4 {[%clk 0:00:33.4]} 70. Kb3 {[%clk 0:00:22.5]} 70... Nd3
{[%clk 0:00:32.3]} 71. Rc4+ {[%clk 0:00:21]} 71... Kg5 {[%clk 0:00:30.6]} 72.
Rc3 {[%clk 0:00:20.1]} 72... Nf2 {[%clk 0:00:29.5]} 73. Kb2 {[%clk 0:00:18.9]}
73... Nd1+ {[%clk 0:00:28.3]} 0-1

[Event "Live Chess"]
[Site "Chess.com"]
[Date "2023.05.20"]
[Round "-"]
[White "Misha145Chess"]
[Black "OceanFloater"]
[Result "0-1"]
[WhiteElo "596"]
[BlackElo "986"]
[TimeControl "300"]
[EndTime "10:12:01 PDT"]
[Termination "OceanFloater won by resignation"]

1. d4 {[%clk 0:04:57.6]} 1... c5 {[%clk 0:04:58.6]} 2. dxc5 {[%clk 0:04:55.4]}
2... b6 {[%clk 0:04:55.5]} 3. cxb6 {[%clk 0:04:54]} 3... Qxb6 {[%clk 0:04:54.5]}
4. e4 {[%clk 0:04:51.4]} 4... e5 {[%clk 0:04:51.8]} 5. Nf3 {[%clk 0:04:49.1]}
5... Nc6 {[%clk 0:04:48.8]} 6. Nc3 {[%clk 0:04:42.8]} 6... Bb4 {[%clk
0:04:45.9]} 7. Bd2 {[%clk 0:04:39.6]} 7... Bxc3 {[%clk 0:04:44.1]} 8. Bxc3
{[%clk 0:04:38]} 8... d6 {[%clk 0:04:42.9]} 9. Qxd6 {[%clk 0:04:28.1]} 9... f6
{[%clk 0:04:31.1]} 10. Ba5 {[%clk 0:04:19.7]} 10... Qxa5+ {[%clk 0:04:08.9]} 11.
c3 {[%clk 0:04:15.3]} 11... Nge7 {[%clk 0:03:45.8]} 12. O-O-O {[%clk 0:04:08]}
12... O-O {[%clk 0:03:41.4]} 13. b4 {[%clk 0:03:59.6]} 13... Qb6 {[%clk
0:03:35.2]} 14. b5 {[%clk 0:03:42.1]} 14... Rd8 {[%clk 0:03:32.6]} 15. Qa3
{[%clk 0:03:17.8]} 15... Rxd1+ {[%clk 0:03:27.5]} 16. Kxd1 {[%clk 0:03:15.6]}
16... Qxf2 {[%clk 0:03:19.9]} 17. bxc6 {[%clk 0:03:09.5]} 17... Nxc6 {[%clk
0:03:09.4]} 18. Bb5 {[%clk 0:02:53]} 18... Rb8 {[%clk 0:03:04.9]} 19. Qa4 {[%clk
0:02:34.9]} 19... Qxg2 {[%clk 0:02:57.7]} 20. Rg1 {[%clk 0:02:12.3]} 20... Qxf3+
{[%clk 0:02:56.3]} 21. Be2 {[%clk 0:02:05.5]} 21... Rb1+ {[%clk 0:02:49.5]} 22.
Kd2 {[%clk 0:02:03.4]} 22... Qf4+ {[%clk 0:02:42.6]} 0-1

[Event "Live Chess"]
[Site "Chess.com"]
[Date "2023.05.20"]
[Round "-"]
[White "LanceMaster23"]
[Black "zdanevych"]
[Result "1-0"]
[WhiteElo "1861"]
[BlackElo "1537"]
[TimeControl "300"]
[EndTime "10:12:02 PDT"]
[Termination "LanceMaster23 won by checkmate"]

1. Nf3 {[%clk 0:04:58.5]} 1... d5 {[%clk 0:04:59.1]} 2. d4 {[%clk 0:04:57.4]}
2... c5 {[%clk 0:04:57.4]} 3. c3 {[%clk 0:04:56.2]} 3... Nc6 {[%clk 0:04:55.5]}
4. Bf4 {[%clk 0:04:54.8]} 4... cxd4 {[%clk 0:04:54.1]} 5. Nxd4 {[%clk
0:04:53.4]} 5... Nf6 {[%clk 0:04:49.1]} 6. Nxc6 {[%clk 0:04:42.4]} 6... bxc6
{[%clk 0:04:49]} 7. e3 {[%clk 0:04:40.4]} 7... Bf5 {[%clk 0:04:44.6]} 8. Qa4
{[%clk 0:04:37]} 8... Qb6 {[%clk 0:04:37.8]} 9. Nd2 {[%clk 0:04:16.3]} 9... e6
{[%clk 0:04:34.5]} 10. Be2 {[%clk 0:03:42.9]} 10... Be7 {[%clk 0:04:24]} 11. O-O
{[%clk 0:03:37.8]} 11... O-O {[%clk 0:04:22.1]} 12. b4 {[%clk 0:03:25.1]} 12...
a5 {[%clk 0:04:18.8]} 13. b5 {[%clk 0:03:22.5]} 13... cxb5 {[%clk 0:04:16.2]}
14. Qxb5 {[%clk 0:03:06.6]} 14... Qxb5 {[%clk 0:03:54.8]} 15. Bxb5 {[%clk
0:03:06.5]} 15... Ne4 {[%clk 0:03:51.8]} 16. Nxe4 {[%clk 0:02:52.8]} 16... Bxe4
{[%clk 0:03:51.7]} 17. a4 {[%clk 0:02:38.6]} 17... Bf6 {[%clk 0:03:49.1]} 18.
Rac1 {[%clk 0:02:36]} 18... Rfc8 {[%clk 0:03:47.3]} 19. c4 {[%clk 0:02:29.6]}
19... dxc4 {[%clk 0:03:42]} 20. Rxc4 {[%clk 0:02:24.6]} 20... Bd5 {[%clk
0:03:34.7]} 21. Rc7 {[%clk 0:01:57.5]} 21... Rxc7 {[%clk 0:03:28.1]} 22. Bxc7
{[%clk 0:01:57.4]} 22... Bc3 {[%clk 0:03:27.5]} 23. Rc1 {[%clk 0:01:55.5]} 23...
Bb4 {[%clk 0:03:21.1]} 24. Bb6 {[%clk 0:01:43.1]} 24... f5 {[%clk 0:03:17.3]}
25. f3 {[%clk 0:01:40.9]} 25... Kf7 {[%clk 0:03:15.3]} 26. Rc7+ {[%clk
0:01:38.2]} 26... Kg6 {[%clk 0:03:08.1]} 27. Bd4 {[%clk 0:01:36.5]} 27... Bd6
{[%clk 0:02:53]} 28. Rxg7+ {[%clk 0:01:34.4]} 28... Kh6 {[%clk 0:02:50.5]} 29.
Rd7 {[%clk 0:01:30.4]} 29... Bb4 {[%clk 0:02:49.1]} 30. Bd3 {[%clk 0:01:19.7]}
30... Rc8 {[%clk 0:02:45.4]} 31. e4 {[%clk 0:01:16]} 31... fxe4 {[%clk
0:02:35.1]} 32. fxe4 {[%clk 0:01:11.5]} 32... Bb3 {[%clk 0:02:29]} 33. e5 {[%clk
0:01:05.3]} 33... Rc1+ {[%clk 0:02:22.6]} 34. Kf2 {[%clk 0:01:04]} 34... Be1+
{[%clk 0:02:16.1]} 35. Ke2 {[%clk 0:00:54.2]} 35... Bd1+ {[%clk 0:02:12.1]} 36.
Kxe1 {[%clk 0:00:50.8]} 36... Bxa4+ {[%clk 0:02:10.8]} 37. Kd2 {[%clk
0:00:47.2]} 37... Bxd7 {[%clk 0:02:07.5]} 38. Kxc1 {[%clk 0:00:45.2]} 38... Kg5
{[%clk 0:02:05.9]} 39. Bxh7 {[%clk 0:00:41]} 39... a4 {[%clk 0:02:04.9]} 40. Bg8
{[%clk 0:00:39.5]} 40... Kf4 {[%clk 0:02:03.8]} 41. Bh7 {[%clk 0:00:37]} 41...
Kg5 {[%clk 0:01:59.8]} 42. Kd2 {[%clk 0:00:35.9]} 42... Kf4 {[%clk 0:01:58.5]}
43. Kd3 {[%clk 0:00:33.8]} 43... Kg5 {[%clk 0:01:58.2]} 44. Kc4 {[%clk
0:00:30.6]} 44... Kh6 {[%clk 0:01:55.9]} 45. Bc2 {[%clk 0:00:28.4]} 45... Kg5
{[%clk 0:01:54.7]} 46. Kc5 {[%clk 0:00:27.4]} 46... Kh6 {[%clk 0:01:50.8]} 47.
Kd6 {[%clk 0:00:26.1]} 47... Be8 {[%clk 0:01:50.5]} 48. Bb1 {[%clk 0:00:24.2]}
48... Kg7 {[%clk 0:01:48.5]} 49. Ba2 {[%clk 0:00:23.5]} 49... Kf7 {[%clk
0:01:46.7]} 50. g4 {[%clk 0:00:22.5]} 50... Kg7 {[%clk 0:01:43.9]} 51. Bxe6
{[%clk 0:00:20.9]} 51... Bg6 {[%clk 0:01:42.3]} 52. Ba2 {[%clk 0:00:19.2]} 52...
Be4 {[%clk 0:01:40.5]} 53. h4 {[%clk 0:00:18.4]} 53... Bc2 {[%clk 0:01:39.7]}
54. h5 {[%clk 0:00:16.2]} 54... Bb3 {[%clk 0:01:39.3]} 55. g5 {[%clk 0:00:15.6]}
55... Bxa2 {[%clk 0:01:38.3]} 56. h6+ {[%clk 0:00:14.5]} 56... Kg6 {[%clk
0:01:37]} 57. e6 {[%clk 0:00:13.5]} 57... Kxg5 {[%clk 0:01:35.2]} 58. h7 {[%clk
0:00:12.6]} 58... Kg6 {[%clk 0:01:33.8]} 59. h8=Q {[%clk 0:00:11.4]} 59... Bxe6
{[%clk 0:01:33.7]} 60. Kxe6 {[%clk 0:00:09.7]} 60... Kg5 {[%clk 0:01:31.7]} 61.
Qe5+ {[%clk 0:00:08.6]} 61... Kg4 {[%clk 0:01:31.6]} 62. Qf5+ {[%clk 0:00:07.8]}
62... Kg3 {[%clk 0:01:30.6]} 63. Ke5 {[%clk 0:00:07.7]} 63... Kg2 {[%clk
0:01:30.5]} 64. Qf4 {[%clk 0:00:07.2]} 64... Kh3 {[%clk 0:01:28.4]} 65. Ke4
{[%clk 0:00:07.1]} 65... Kg2 {[%clk 0:01:27.3]} 66. Qf3+ {[%clk 0:00:05.9]}
66... Kh2 {[%clk 0:01:26.1]} 67. Qg4 {[%clk 0:00:05.8]} 67... Kh1 {[%clk
0:01:24.7]} 68. Kf3 {[%clk 0:00:05.7]} 68... Kh2 {[%clk 0:01:24.6]} 69. Qg2#
{[%clk 0:00:05.6]} 1-0

[Event "Live Chess"]
[Site "Chess.com"]
[Date "2023.05.20"]
[Round "-"]
[White "friarnator"]
[Black "nigelst"]
[Result "1-0"]
[WhiteElo "1981"]
[BlackElo "1842"]
[TimeControl "300"]
[EndTime "10:12:04 PDT"]
[Termination "friarnator won by resignation"]

1. d4 {[%clk 0:04:56.4]} 1... Nf6 {[%clk 0:04:57.7]} 2. Nf3 {[%clk 0:04:53.3]}
2... e6 {[%clk 0:04:56.8]} 3. Bf4 {[%clk 0:04:50]} 3... c5 {[%clk 0:04:54.2]} 4.
e3 {[%clk 0:04:45.2]} 4... b6 {[%clk 0:04:52.8]} 5. c3 {[%clk 0:04:44.2]} 5...
Bb7 {[%clk 0:04:51.2]} 6. Nbd2 {[%clk 0:04:43.6]} 6... cxd4 {[%clk 0:04:50.1]}
7. exd4 {[%clk 0:04:42.5]} 7... d6 {[%clk 0:04:49.4]} 8. Bd3 {[%clk 0:04:41.2]}
8... Be7 {[%clk 0:04:47.5]} 9. O-O {[%clk 0:04:40.2]} 9... O-O {[%clk 0:04:46]}
10. Qe2 {[%clk 0:04:39.4]} 10... Nbd7 {[%clk 0:04:44.6]} 11. Rae1 {[%clk
0:04:31.4]} 11... Re8 {[%clk 0:04:43.4]} 12. Bb1 {[%clk 0:04:30.1]} 12... Nf8
{[%clk 0:04:41.3]} 13. Qd3 {[%clk 0:04:28.5]} 13... Ng6 {[%clk 0:04:39.9]} 14.
Bg3 {[%clk 0:04:24.6]} 14... Nh5 {[%clk 0:04:36]} 15. Ne4 {[%clk 0:04:10.2]}
15... Nxg3 {[%clk 0:04:32.9]} 16. hxg3 {[%clk 0:04:01.9]} 16... Rc8 {[%clk
0:04:23.3]} 17. a4 {[%clk 0:03:52.7]} 17... Bxe4 {[%clk 0:04:22]} 18. Qxe4
{[%clk 0:03:50.3]} 18... d5 {[%clk 0:04:21.4]} 19. Qd3 {[%clk 0:03:47.3]} 19...
Qc7 {[%clk 0:04:11.9]} 20. Ne5 {[%clk 0:03:46.3]} 20... Bf6 {[%clk 0:04:03.8]}
21. f4 {[%clk 0:03:38.6]} 21... Bxe5 {[%clk 0:04:02.7]} 22. fxe5 {[%clk
0:03:37.9]} 22... Qc4 {[%clk 0:04:01.1]} 23. Qf3 {[%clk 0:03:23.2]} 23... Rc7
{[%clk 0:03:56.6]} 24. Bd3 {[%clk 0:03:13.5]} 24... Qxa4 {[%clk 0:03:48.6]} 25.
Qe2 {[%clk 0:03:11.3]} 25... Rec8 {[%clk 0:03:22.2]} 26. Bb5 {[%clk 0:02:54.4]}
26... Qb3 {[%clk 0:03:07.7]} 27. Ra1 {[%clk 0:02:52.7]} 27... Rc4 {[%clk
0:02:52.3]} 28. Bxc4 {[%clk 0:02:40.9]} 28... Qxc4 {[%clk 0:02:39.4]} 29. Qxc4
{[%clk 0:02:39.6]} 29... Rxc4 {[%clk 0:02:38.1]} 30. Rxa7 {[%clk 0:02:39.5]}
30... h6 {[%clk 0:02:36.6]} 31. Rfxf7 {[%clk 0:02:36.7]} 1-0

[Event "Live Chess"]
[Site "Chess.com"]
[Date "2023.05.20"]
[Round "-"]
[White "JackRudd"]
[Black "ACx04"]
[Result "1-0"]
[WhiteElo "2400"]
[BlackElo "433"]
[TimeControl "300"]
[EndTime "10:12:10 PDT"]
[Termination "JackRudd won by checkmate"]

1. d4 {[%clk 0:04:58.8]} 1... d5 {[%clk 0:04:58.7]} 2. c4 {[%clk 0:04:57.4]}
2... dxc4 {[%clk 0:04:57.5]} 3. Nf3 {[%clk 0:04:56]} 3... Bf5 {[%clk 0:04:53.2]}
4. Nc3 {[%clk 0:04:53.2]} 4... Nf6 {[%clk 0:04:51.2]} 5. Qa4+ {[%clk 0:04:51.3]}
5... Qd7 {[%clk 0:04:45.5]} 6. Qxc4 {[%clk 0:04:50]} 6... e6 {[%clk 0:04:41.6]}
7. Ne5 {[%clk 0:04:47.8]} 7... Ne4 {[%clk 0:04:28.8]} 8. Nxd7 {[%clk 0:04:46.2]}
8... Ke7 {[%clk 0:04:27.6]} 9. Nxb8 {[%clk 0:04:43.8]} 9... Rxb8 {[%clk
0:04:25.9]} 10. Qxc7+ {[%clk 0:04:42.7]} 10... Kf6 {[%clk 0:03:59.9]} 11. Nxe4+
{[%clk 0:04:32.2]} 11... Bxe4 {[%clk 0:03:57.2]} 12. Qe5+ {[%clk 0:04:31.3]}
12... Ke7 {[%clk 0:03:55.6]} 13. Qxb8 {[%clk 0:04:29.9]} 13... g6 {[%clk
0:03:53.1]} 14. Bf4 {[%clk 0:04:25.2]} 14... Bg7 {[%clk 0:03:50.8]} 15. Bd6+
{[%clk 0:04:21.8]} 15... Kf6 {[%clk 0:03:48.4]} 16. Be5+ {[%clk 0:04:20.9]}
16... Kf5 {[%clk 0:03:46.5]} 17. g4+ {[%clk 0:04:19.4]} 17... Kxg4 {[%clk
0:03:44]} 18. f3+ {[%clk 0:04:17.9]} 18... Kg5 {[%clk 0:03:41]} 19. Bf4+ {[%clk
0:04:07.9]} 19... Kf6 {[%clk 0:03:35.2]} 20. Qe5+ {[%clk 0:04:05.7]} 20... Ke7
{[%clk 0:03:32]} 21. Qc7+ {[%clk 0:04:04.5]} 21... Kf6 {[%clk 0:03:29.3]} 22.
fxe4 {[%clk 0:04:02.2]} 22... Bf8 {[%clk 0:03:21.7]} 23. Qd8+ {[%clk 0:03:59]}
23... Kg7 {[%clk 0:03:14.6]} 24. Be5+ {[%clk 0:03:57.5]} 24... f6 {[%clk
0:03:05.7]} 25. Qxf6+ {[%clk 0:03:55.9]} 25... Kh6 {[%clk 0:03:00.8]} 26. Qh4#
{[%clk 0:03:54.5]} 1-0

[Event "Live Chess"]
[Site "Chess.com"]
[Date "2023.05.20"]
[Round "-"]
[White "DenDenTie"]
[Black "VovaOvchar1990"]
[Result "0-1"]
[WhiteElo "1176"]
[BlackElo "1190"]
[TimeControl "300"]
[EndTime "10:12:20 PDT"]
[Termination "VovaOvchar1990 won on time"]

1. e4 {[%clk 0:04:55.4]} 1... e5 {[%clk 0:04:59.9]} 2. Nf3 {[%clk 0:04:54.6]}
2... Bb4 {[%clk 0:04:58.3]} 3. Bc4 {[%clk 0:04:52.3]} 3... Nc6 {[%clk
0:04:55.8]} 4. Nc3 {[%clk 0:04:50.1]} 4... Nf6 {[%clk 0:04:54.1]} 5. d3 {[%clk
0:04:46.6]} 5... Bxc3+ {[%clk 0:04:50.4]} 6. bxc3 {[%clk 0:04:27.3]} 6... O-O
{[%clk 0:04:49.1]} 7. Bg5 {[%clk 0:04:25.3]} 7... h6 {[%clk 0:04:46.6]} 8. Bh4
{[%clk 0:04:24]} 8... b6 {[%clk 0:04:32.7]} 9. O-O {[%clk 0:04:20.1]} 9... Bb7
{[%clk 0:04:29.2]} 10. Re1 {[%clk 0:04:17.4]} 10... Qe7 {[%clk 0:04:20.5]} 11.
d4 {[%clk 0:04:03.7]} 11... exd4 {[%clk 0:04:18.4]} 12. Nxd4 {[%clk 0:04:01.4]}
12... Nxd4 {[%clk 0:04:16.7]} 13. Qxd4 {[%clk 0:03:59.8]} 13... c5 {[%clk
0:04:12.4]} 14. Qd3 {[%clk 0:03:55.3]} 14... Bxe4 {[%clk 0:04:05.5]} 15. Rxe4
{[%clk 0:03:53.2]} 15... Qxe4 {[%clk 0:04:03.2]} 16. Bxf6 {[%clk 0:03:46]} 16...
Qxd3 {[%clk 0:04:01]} 17. cxd3 {[%clk 0:03:44.8]} 17... gxf6 {[%clk 0:03:59.8]}
18. Re1 {[%clk 0:03:08.8]} 18... Rfe8 {[%clk 0:03:48]} 19. Rd1 {[%clk
0:03:02.8]} 19... Re2 {[%clk 0:03:46.4]} 20. d4 {[%clk 0:02:57.2]} 20... Rxa2
{[%clk 0:03:42.3]} 21. Bxa2 {[%clk 0:02:55.9]} 21... cxd4 {[%clk 0:03:38.9]} 22.
Rxd4 {[%clk 0:02:54.2]} 22... a5 {[%clk 0:03:37.5]} 23. h3 {[%clk 0:02:53]}
23... Kg7 {[%clk 0:03:36.3]} 24. Rxd7 {[%clk 0:02:51.8]} 24... b5 {[%clk
0:03:34.2]} 25. Rxf7+ {[%clk 0:02:50.4]} 25... Kg6 {[%clk 0:03:32.5]} 26. Rb7
{[%clk 0:02:46]} 26... b4 {[%clk 0:03:27.9]} 27. cxb4 {[%clk 0:02:08.8]} 27...
axb4 {[%clk 0:03:24.4]} 28. Bb1+ {[%clk 0:01:53.2]} 28... Kg5 {[%clk 0:03:20.4]}
29. Rxb4 {[%clk 0:01:52]} 29... Ra1 {[%clk 0:03:19.1]} 30. Kh2 {[%clk
0:01:50.5]} 30... f5 {[%clk 0:03:04.4]} 31. Bd3 {[%clk 0:01:45.3]} 31... f4
{[%clk 0:03:00.5]} 32. Rb5+ {[%clk 0:00:24.6]} 32... Kf6 {[%clk 0:02:58.9]} 33.
g3 {[%clk 0:00:21.6]} 33... fxg3+ {[%clk 0:02:54.1]} 34. fxg3 {[%clk 0:00:09.3]}
34... Ra2+ {[%clk 0:02:52.1]} 35. Kh1 {[%clk 0:00:07.4]} 35... Rd2 {[%clk
0:02:49.3]} 36. g4 {[%clk 0:00:07]} 36... Rxd3 {[%clk 0:02:47.4]} 37. h4 {[%clk
0:00:06.5]} 37... Rd4 {[%clk 0:02:44.4]} 0-1

[Event "Live Chess"]
[Site "Chess.com"]
[Date "2023.05.20"]
[Round "-"]
[White "Leonid_Starozhilov"]
[Black "ReeceHockton"]
[Result "1-0"]
[WhiteElo "2657"]
[BlackElo "331"]
[TimeControl "300"]
[EndTime "10:12:22 PDT"]
[Termination "Leonid_Starozhilov won by resignation"]

1. b3 {[%clk 0:04:57.6]} 1... b6 {[%clk 0:04:53.1]} 2. Bb2 {[%clk 0:04:57.5]}
2... Bb7 {[%clk 0:04:51.7]} 3. h4 {[%clk 0:04:56.2]} 3... Nf6 {[%clk 0:04:49.7]}
4. h5 {[%clk 0:04:55.7]} 4... g6 {[%clk 0:04:47]} 5. hxg6 {[%clk 0:04:54.3]}
5... Bg7 {[%clk 0:04:45.3]} 6. gxf7+ {[%clk 0:04:53.1]} 6... Kxf7 {[%clk
0:04:42.4]} 7. Nf3 {[%clk 0:04:53]} 7... h5 {[%clk 0:04:40.7]} 8. d3 {[%clk
0:04:50.5]} 8... c5 {[%clk 0:04:38.8]} 9. e4 {[%clk 0:04:49.3]} 9... e5 {[%clk
0:04:36.8]} 10. Nxe5+ {[%clk 0:04:48.4]} 10... Ke6 {[%clk 0:04:32.6]} 11. Be2
{[%clk 0:04:48.3]} 11... Nxe4 {[%clk 0:04:27.7]} 12. dxe4 {[%clk 0:04:42.7]}
12... Bxe4 {[%clk 0:04:26.7]} 13. f4 {[%clk 0:04:20]} 13... Bxg2 {[%clk
0:04:23.6]} 14. Rh2 {[%clk 0:04:15.7]} 14... Bd5 {[%clk 0:04:18]} 15. Nc3 {[%clk
0:03:59.7]} 15... Bxe5 {[%clk 0:04:13.7]} 16. Qxd5+ {[%clk 0:03:58.3]} 16... Ke7
{[%clk 0:04:07.9]} 17. Qxe5+ {[%clk 0:03:56.2]} 17... Kf8 {[%clk 0:04:06.3]} 18.
Qxh8+ {[%clk 0:03:53.9]} 18... Ke7 {[%clk 0:04:04.8]} 19. Qe5+ {[%clk 0:03:53]}
1-0